[Event "FIDE Grand Swiss 2023"]
[Site "Villa Marina, Douglas, Isle of Man"]
[Date "2023.11.04"]
[Round "10.34"]
[White "Zhalmakhanov, Ramazan"]
[Black "Martirosyan, Haik M."]
[Result "1/2-1/2"]
[WhiteElo "2447"]
[BlackElo "2696"]
[EventDate "2023.10.25"]
[ECO "C67"]
[PlyCount "30"]
[BlackFideId "13306553"]
[TimeControl "40/100 + 20/50 + 15 + 30s/move"]
[WhiteFideId "13706357"]

1.e4 {[%clk 01:40:55] [%emt 00:00:05]} 1...e5 {[%clk 01:40:38] [%emt 00:00:23]} 
2.Nf3 {[%clk 01:41:12] [%emt 00:00:13]} 2...Nc6 {[%clk 01:41:00] [%emt
00:00:07]} 3.Bb5 {[%clk 01:41:28] [%emt 00:00:15]} 3...Nf6 {[%clk 01:41:19]
[%emt 00:00:10]} 4.O-O {[%clk 01:40:30] [%emt 00:01:28]} 4...Nxe4 {[%clk
01:41:44] [%emt 00:00:05]} 5.d4 {[%clk 01:40:54] [%emt 00:00:06]} 5...Nd6 
{[%clk 01:42:04] [%emt 00:00:10]} 6.dxe5 {[%clk 01:41:05] [%emt 00:00:19]} 
6...Nxb5 {[%clk 01:42:25] [%emt 00:00:09]} 7.a4 {[%clk 01:41:31] [%emt
00:00:05]} 7...Nbd4 {[%clk 01:40:05] [%emt 00:02:50]} 8.Nxd4 {[%clk 01:41:15]
[%emt 00:00:46]} 8...d5 {[%clk 01:40:24] [%emt 00:00:10]} 9.exd6 {[%clk
01:41:33] [%emt 00:00:13]} 9...Nxd4 {[%clk 01:40:46] [%emt 00:00:08]} 10.Qxd4 
{[%clk 01:41:55] [%emt 00:00:07]} 10...Qxd6 {[%clk 01:41:12] [%emt 00:00:05]} 
11.Qe4+ {[%clk 01:42:17] [%emt 00:00:08]} 11...Qe6 {[%clk 01:41:37] [%emt
00:00:05]} 12.Qd4 {[%clk 01:42:43] [%emt 00:00:03]} 12...Qd6 {[%clk 01:42:02]
[%emt 00:00:05]} 13.Qe4+ {[%clk 01:43:07] [%emt 00:00:06]} 13...Qe6 {[%clk
01:42:28] [%emt 00:00:04]} 14.Qd4 {[%clk 01:43:33] [%emt 00:00:04]} 14...Qd6 
{[%clk 01:42:54] [%emt 00:00:04]} 15.Qe4+ {[%clk 01:43:59] [%emt 00:00:05]} 
15...Qe6 {[%clk 01:42:05] [%emt 00:00:48]} 1/2-1/2

[Event "FIDE Grand Swiss 2023"]
[Site "Villa Marina, Douglas, Isle of Man"]
[Date "2023.11.04"]
[Round "10.35"]
[White "Xiong, Jeffery"]
[Black "Durarbayli, Vasif"]
[Result "1/2-1/2"]
[WhiteElo "2693"]
[BlackElo "2625"]
[EventDate "2023.10.25"]
[ECO "C45"]
[PlyCount "60"]
[BlackClock "00:20:03"]
[BlackFideId "13402935"]
[TimeControl "40/100 + 20/50 + 15 + 30s/move"]
[WhiteClock "00:44:29"]
[WhiteFideId "2047640"]

1.e4 {[%clk 01:40:58][%emt 00:00:01]} 1...e5 {[%clk 01:40:25][%emt 00:00:36]} 
2.Nf3 {[%clk 01:41:25][%emt 00:00:03]} 2...Nc6 {[%clk 01:40:02][%emt 00:00:52]} 
3.d4 {[%clk 01:40:43][%emt 00:01:12]} 3...exd4 {[%clk 01:39:55][%emt 00:00:37]} 
4.Nxd4 {[%clk 01:41:10][%emt 00:00:04]} 4...Bc5 {[%clk 01:39:46][%emt 00:00:38]} 
5.Nb3 {[%clk 01:37:56][%emt 00:03:44]} 5...Bb6 {[%clk 01:38:52][%emt 00:01:24]} 
6.Nc3 {[%clk 01:34:39][%emt 00:03:47]} 6...Nf6 {[%clk 01:32:42][%emt 00:06:39]} 
7.Bg5 {[%clk 01:32:10][%emt 00:02:59]} 7...O-O {[%clk 01:26:17][%emt 00:06:56]} 
8.Bh4 {[%clk 01:31:35][%emt 00:01:04]} 8...Re8 {[%clk 01:22:08][%emt 00:04:40]} 
9.Be2 {[%clk 01:29:48][%emt 00:02:17]} 9...h6 {[%clk 01:16:17][%emt 00:06:21]} 
10.O-O {[%clk 01:29:12][%emt 00:01:05]} 10...a5 {[%clk 01:13:31][%emt 00:03:17]} 
11.a4 {[%clk 01:24:03][%emt 00:05:38]} 11...g5 {[%clk 01:12:01][%emt 00:02:01]} 
12.Bg3 {[%clk 01:24:00][%emt 00:00:32]} 12...Nxe4 {[%clk 01:11:51][%emt
00:00:40]} 13.Nxe4 {[%clk 01:24:24][%emt 00:00:08]} 13...Rxe4 {[%clk
01:11:50][%emt 00:00:30]} 14.Kh1 {[%clk 01:24:46][%emt 00:00:08]} 14...d6 
{[%clk 00:55:00][%emt 00:17:21]} 15.Nd2 {[%clk 01:24:17][%emt 00:00:57]} 
15...Re7 {[%clk 00:49:32][%emt 00:05:59]} 16.f4 {[%clk 01:24:26][%emt 00:00:20]} 
16...Nd4 {[%clk 00:46:08][%emt 00:03:55]} 17.Bd3 {[%clk 01:18:27][%emt
00:06:29]} 17...Bf5 {[%clk 00:41:35][%emt 00:05:02]} 18.Qh5 {[%clk
01:10:23][%emt 00:08:34]} 18...Bxd3 {[%clk 00:33:38][%emt 00:08:28]} 19.cxd3 
{[%clk 01:10:32][%emt 00:00:21]} 19...f5 {[%clk 00:33:48][%emt 00:00:20]} 
20.Rae1 {[%clk 01:01:24][%emt 00:09:38]} 20...Qe8 {[%clk 00:25:44][%emt
00:08:35]} 21.Qxh6 {[%clk 01:00:14][%emt 00:01:39]} 21...Ne2 {[%clk
00:25:59][%emt 00:00:15]} 22.Rxe2 {[%clk 00:53:46][%emt 00:06:58]} 22...Rxe2 
{[%clk 00:25:40][%emt 00:00:50]} 23.Qxg5+ {[%clk 00:54:13][%emt 00:00:02]} 
23...Kf8 {[%clk 00:21:51][%emt 00:04:18]} 24.Qf6+ {[%clk 00:43:47][%emt
00:10:56]} 24...Qf7 {[%clk 00:22:01] [%emt 00:00:21]} 25.Qh8+ {[%clk 00:44:12]
[%emt 00:00:05]} 25...Qg8 {[%clk 00:22:13] [%emt 00:00:16]} 26.Qf6+ {[%clk
00:44:39] [%emt 00:00:05]} 26...Qf7 {[%clk 00:22:33] [%emt 00:00:10]} 27.Qh8+ 
{[%clk 00:45:03] [%emt 00:00:05]} 27...Qg8 {[%clk 00:23:01] [%emt 00:00:03]} 
28.Qf6+ {[%clk 00:45:27] [%emt 00:00:06]} 28...Qf7 {[%clk 00:19:47] [%emt
00:03:44]} 29.Qh8+ {[%clk 00:45:03][%emt 00:00:05]} 29...Qg8 {[%clk
00:23:01][%emt 00:00:03]} 30.Qf6+ {[%clk 00:45:27][%emt 00:00:06]} 30...Qf7 
{[%clk 00:22:33][%emt 00:00:10]} 1/2-1/2

[Event "FIDE Grand Swiss 2023"]
[Site "Villa Marina, Douglas, Isle of Man"]
[Date "2023.11.04"]
[Round "10.36"]
[White "Theodorou, Nikolas"]
[Black "Grandelius, Nils"]
[Result "1/2-1/2"]
[WhiteElo "2619"]
[BlackElo "2689"]
[EventDate "2023.10.25"]
[ECO "A07"]
[PlyCount "60"]
[BlackClock "00:16:56"]
[BlackFideId "1710400"]
[TimeControl "40/100 + 20/50 + 15 + 30s/move"]
[WhiteClock "00:29:15"]
[WhiteFideId "4262875"]

1.Nf3 {[%clk 01:40:55][%emt 00:00:05]} 1...d5 {[%clk 01:40:12][%emt 00:00:48]} 
2.g3 {[%clk 01:41:18][%emt 00:00:08]} 2...Nd7 {[%clk 01:39:40][%emt 00:01:01]} 
3.d4 {[%clk 01:41:39][%emt 00:00:10]} 3...Nb6 {[%clk 01:40:04][%emt 00:00:06]} 
4.Nc3 {[%clk 01:40:08][%emt 00:02:01]} 4...Bf5 {[%clk 01:40:02][%emt 00:00:32]} 
5.Nh4 {[%clk 01:39:22][%emt 00:01:17]} 5...Bg4 {[%clk 01:40:17][%emt 00:00:13]} 
6.h3 {[%clk 01:38:56][%emt 00:00:56]} 6...Bh5 {[%clk 01:40:18][%emt 00:00:28]} 
7.Ng2 {[%clk 01:35:20][%emt 00:04:07]} 7...Nf6 {[%clk 01:31:01][%emt 00:09:47]} 
8.Nf4 {[%clk 01:30:14][%emt 00:05:37]} 8...Bg6 {[%clk 01:30:44][%emt 00:00:47]} 
9.Nxg6 {[%clk 01:22:57][%emt 00:07:47]} 9...hxg6 {[%clk 01:31:06][%emt
00:00:07]} 10.Qd3 {[%clk 01:23:22][%emt 00:00:05]} 10...e6 {[%clk 01:12:03][%emt
00:19:34]} 11.Bg2 {[%clk 01:22:13][%emt 00:01:39]} 11...c5 {[%clk 00:51:49][%emt
00:20:43]} 12.dxc5 {[%clk 01:21:03][%emt 00:01:40]} 12...Bxc5 {[%clk
00:51:33][%emt 00:00:46]} 13.O-O {[%clk 01:20:42][%emt 00:00:52]} 13...O-O 
{[%clk 00:50:53][%emt 00:01:09]} 14.e4 {[%clk 01:19:08][%emt 00:02:04]} 14...d4 
{[%clk 00:46:07][%emt 00:05:16]} 15.Ne2 {[%clk 01:14:55][%emt 00:04:43]} 
15...e5 {[%clk 00:44:45][%emt 00:01:52]} 16.Bg5 {[%clk 01:05:47][%emt 00:09:39]} 
16...Be7 {[%clk 00:36:00][%emt 00:09:15]} 17.c3 {[%clk 00:35:55][%emt 00:30:22]} 
17...dxc3 {[%clk 00:36:01][%emt 00:00:28]} 18.Qxd8 {[%clk 00:36:20][%emt
00:00:05]} 18...Rfxd8 {[%clk 00:35:55][%emt 00:00:36]} 19.Nxc3 {[%clk
00:36:44][%emt 00:00:06]} 19...Rac8 {[%clk 00:29:57][%emt 00:06:28]} 20.Rac1 
{[%clk 00:31:56][%emt 00:05:18]} 20...Nfd5 {[%clk 00:24:20][%emt 00:06:07]} 
21.Nxd5 {[%clk 00:27:25][%emt 00:05:02]} 21...Bxg5 {[%clk 00:23:44][%emt
00:01:05]} 22.Rxc8 {[%clk 00:27:42][%emt 00:00:13]} 22...Rxc8 {[%clk
00:24:02][%emt 00:00:12]} 23.Rd1 {[%clk 00:27:56][%emt 00:00:17]} 23...Rc1 
{[%clk 00:16:09][%emt 00:08:22]} 24.Rxc1 {[%clk 00:28:07][%emt 00:00:19]} 
24...Bxc1 {[%clk 00:16:34][%emt 00:00:05]} 25.Nxb6 {[%clk 00:28:31][%emt
00:00:06]} 25...axb6 {[%clk 00:17:00][%emt 00:00:04]} 26.b4 {[%clk
00:27:46][%emt 00:01:16]} 26...b5 {[%clk 00:15:17][%emt 00:02:13]} 27.Bf1 
{[%clk 00:28:10][%emt 00:00:05]} 27...Ba3 {[%clk 00:15:41][%emt 00:00:06]} 
28.Bxb5 {[%clk 00:28:36][%emt 00:00:05]} 28...Bxb4 {[%clk 00:16:08][%emt
00:00:03]} 29.Bc4 {[%clk 00:28:57][%emt 00:00:09]} 29...b6 {[%clk 00:16:33][%emt
00:00:04]} 30.h4 {[%clk 00:29:18] [%emt 00:00:09]} 30...Kf8 {[%emt 00:00:12]} 1/2-1/2

[Event "FIDE Grand Swiss 2023"]
[Site "Villa Marina, Douglas, Isle of Man"]
[Date "2023.11.04"]
[Round "10.37"]
[White "Akobian, Varuzhan"]
[Black "Amin, Bassem"]
[Result "0-1"]
[WhiteElo "2582"]
[BlackElo "2680"]
[EventDate "2023.10.25"]
[ECO "E90"]
[PlyCount "74"]
[BlackClock "00:16:45"]
[BlackFideId "10601457"]
[TimeControl "40/100 + 20/50 + 15 + 30s/move"]
[WhiteClock "00:00:36"]
[WhiteFideId "13300580"]

1.d4 {[%clk 01:40:54][%emt 00:00:04]} 1...Nf6 {[%clk 01:40:11][%emt 00:00:49]} 
2.c4 {[%clk 01:41:14][%emt 00:00:11]} 2...g6 {[%clk 01:40:37][%emt 00:00:04]} 
3.Nc3 {[%clk 01:41:35][%emt 00:00:09]} 3...Bg7 {[%clk 01:41:02][%emt 00:00:05]} 
4.e4 {[%clk 01:41:51][%emt 00:00:12]} 4...d6 {[%clk 01:41:29][%emt 00:00:05]} 
5.Nf3 {[%clk 01:41:30][%emt 00:00:50]} 5...O-O {[%clk 01:41:50][%emt 00:00:10]} 
6.h3 {[%clk 01:35:34][%emt 00:06:24]} 6...e5 {[%clk 01:42:01][%emt 00:00:21]} 
7.d5 {[%clk 01:34:03][%emt 00:02:01]} 7...Nh5 {[%clk 01:38:51][%emt 00:03:40]} 
8.g3 {[%clk 01:33:53][%emt 00:00:38]} 8...f5 {[%clk 01:38:11][%emt 00:01:12]} 
9.exf5 {[%clk 01:34:12][%emt 00:00:11]} 9...gxf5 {[%clk 01:38:30][%emt
00:00:11]} 10.Ng5 {[%clk 01:30:22][%emt 00:04:19]} 10...Qe8 {[%clk
01:29:35][%emt 00:09:26]} 11.Bg2 {[%clk 01:30:29][%emt 00:00:23]} 11...Nf6 
{[%clk 01:27:36][%emt 00:02:29]} 12.g4 {[%clk 01:16:18][%emt 00:14:41]} 12...e4 
{[%clk 01:23:22][%emt 00:04:44]} 13.Be3 {[%clk 00:49:47][%emt 00:27:00]} 
13...Na6 {[%clk 01:18:27][%emt 00:05:26]} 14.Qd2 {[%clk 00:48:32][%emt
00:01:44]} 14...h6 {[%clk 01:10:00][%emt 00:08:59]} 15.Ne6 {[%clk 00:46:54][%emt
00:02:07]} 15...Bxe6 {[%clk 01:10:23][%emt 00:00:06]} 16.dxe6 {[%clk
00:47:17][%emt 00:00:08]} 16...Qxe6 {[%clk 01:10:38][%emt 00:00:15]} 17.Bxh6 
{[%clk 00:38:01][%emt 00:09:45]} 17...Nc5 {[%clk 01:06:11][%emt 00:04:58]} 
18.O-O-O {[%clk 00:31:35][%emt 00:06:56]} 18...Rf7 {[%clk 01:02:33][%emt
00:04:07]} 19.gxf5 {[%clk 00:25:11][%emt 00:06:54]} 19...Qxf5 {[%clk
01:00:34][%emt 00:02:29]} 20.Be3 {[%clk 00:19:45][%emt 00:05:57]} 20...Re8 
{[%clk 00:50:24][%emt 00:10:40]} 21.Bf1 {[%clk 00:18:15][%emt 00:02:00]} 
21...Nfd7 {[%clk 00:47:22][%emt 00:03:33]} 22.Be2 {[%clk 00:09:12][%emt
00:09:32]} 22...Ne5 {[%clk 00:45:40][%emt 00:02:13]} 23.Bxc5 {[%clk
00:08:12][%emt 00:01:29]} 23...dxc5 {[%clk 00:46:08][%emt 00:00:03]} 24.Rhg1 
{[%clk 00:02:29][%emt 00:06:13]} 24...Kh7 {[%clk 00:40:18][%emt 00:06:19]} 
25.Qc2 {[%clk 00:02:24][%emt 00:00:35]} 25...Nc6 {[%clk 00:35:34][%emt
00:05:14]} 26.Bg4 {[%clk 00:01:06][%emt 00:01:48]} 26...Qxf2 {[%clk
00:31:18][%emt 00:04:46]} 27.Qxf2 {[%clk 00:00:38][%emt 00:00:57]} 27...Rxf2 
{[%clk 00:31:47][%emt 00:00:02]} 28.Rd7 {[%clk 00:00:39][%emt 00:00:30]} 
28...Re7 {[%clk 00:22:12][%emt 00:10:05]} 29.Nxe4 {[%clk 00:00:50][%emt
00:00:18]} 29...Rxe4 {[%clk 00:17:49][%emt 00:04:53]} 30.Rxg7+ {[%clk
00:01:13][%emt 00:00:07]} 30...Kxg7 {[%clk 00:18:13][%emt 00:00:06]} 31.Bf3+ 
{[%clk 00:01:32][%emt 00:00:11]} 31...Kf6 {[%clk 00:17:55][%emt 00:00:48]} 
32.Bxe4 {[%clk 00:01:57][%emt 00:00:05]} 32...Ne5 {[%clk 00:18:21][%emt
00:00:04]} 33.b3 {[%clk 00:00:34][%emt 00:01:53]} 33...Rxa2 {[%clk
00:15:34][%emt 00:03:17]} 34.Kb1 {[%clk 00:00:51][%emt 00:00:13]} 34...Rh2 
{[%clk 00:15:49][%emt 00:00:15]} 35.Bxb7 {[%clk 00:00:54][%emt 00:00:27]} 
35...Rxh3 {[%clk 00:16:13][%emt 00:00:06]} 36.Kc2 {[%clk 00:00:33][%emt
00:00:51]} 36...Nd3 {[%clk 00:16:21] [%emt 00:00:22]} 37.Rg2 {[%clk 00:00:39]
[%emt 00:00:23]} 37...Ne1+ {[%clk 00:16:45] [%emt 00:00:07]} 0-1

[Event "FIDE Grand Swiss 2023"]
[Site "Villa Marina, Douglas, Isle of Man"]
[Date "2023.11.04"]
[Round "10.38"]
[White "Abasov, Nijat"]
[Black "Mendonca, Leon Luke"]
[Result "1/2-1/2"]
[WhiteElo "2679"]
[BlackElo "2622"]
[EventDate "2023.10.25"]
[ECO "D45"]
[PlyCount "64"]
[BlackClock "00:21:31"]
[BlackFideId "35028561"]
[TimeControl "40/100 + 20/50 + 15 + 30s/move"]
[WhiteClock "00:46:28"]
[WhiteFideId "13402960"]

1.d4 {[%clk 01:40:57][%emt 00:00:02]} 1...d5 {[%clk 01:40:40][%emt 00:00:21]} 
2.c4 {[%clk 01:41:11][%emt 00:00:16]} 2...c6 {[%clk 01:40:56][%emt 00:00:14]} 
3.Nc3 {[%clk 01:41:19][%emt 00:00:21]} 3...Nf6 {[%clk 01:41:19][%emt 00:00:08]} 
4.e3 {[%clk 01:38:29][%emt 00:03:20]} 4...e6 {[%clk 01:41:12][%emt 00:00:38]} 
5.Nf3 {[%clk 01:38:33][%emt 00:00:25]} 5...Nbd7 {[%clk 01:41:24][%emt 00:00:18]} 
6.Qc2 {[%clk 01:37:30][%emt 00:01:33]} 6...Bd6 {[%clk 01:41:33][%emt 00:00:21]} 
7.g4 {[%clk 01:36:34][%emt 00:01:26]} 7...h6 {[%clk 01:41:08][%emt 00:00:56]} 
8.g5 {[%clk 01:34:42][%emt 00:02:22]} 8...hxg5 {[%clk 01:41:13][%emt 00:00:25]} 
9.Nxg5 {[%clk 01:35:05][%emt 00:00:05]} 9...e5 {[%clk 01:30:11][%emt 00:11:33]} 
10.Bd2 {[%clk 01:34:38][%emt 00:00:57]} 10...exd4 {[%clk 01:25:38][%emt
00:05:04]} 11.exd4 {[%clk 01:34:55][%emt 00:00:13]} 11...Qe7+ {[%clk
01:25:40][%emt 00:00:28]} 12.Be2 {[%clk 01:35:19][%emt 00:00:05]} 12...dxc4 
{[%clk 01:23:44][%emt 00:02:27]} 13.O-O-O {[%clk 01:35:42][%emt 00:00:06]} 
13...Nb6 {[%clk 01:22:51][%emt 00:01:23]} 14.Rde1 {[%clk 01:35:48][%emt
00:00:23]} 14...Be6 {[%clk 01:21:11][%emt 00:02:12]} 15.Nxe6 {[%clk
01:36:09][%emt 00:00:08]} 15...fxe6 {[%clk 01:21:30][%emt 00:00:11]} 16.Bg5 
{[%clk 01:36:12][%emt 00:00:26]} 16...Qf7 {[%clk 00:54:53][%emt 00:27:08]} 
17.Ne4 {[%clk 01:23:59][%emt 00:12:43]} 17...O-O-O {[%clk 00:52:31][%emt
00:02:52]} 18.Bxc4 {[%clk 01:23:32][%emt 00:00:57]} 18...Nxc4 {[%clk
00:50:00][%emt 00:03:02]} 19.Qxc4 {[%clk 01:23:43][%emt 00:00:18]} 19...Nxe4 
{[%clk 00:48:11][%emt 00:02:19]} 20.Rxe4 {[%clk 01:23:59][%emt 00:00:13]} 
20...Be7 {[%clk 00:42:13][%emt 00:06:29]} 21.Bxe7 {[%clk 01:20:29][%emt
00:04:00]} 21...Qxe7 {[%clk 00:42:40][%emt 00:00:03]} 22.Qxe6+ {[%clk
01:08:25][%emt 00:12:34]} 22...Qxe6 {[%clk 00:42:38][%emt 00:00:32]} 23.Rxe6 
{[%clk 01:08:49][%emt 00:00:06]} 23...Rxd4 {[%clk 00:42:58][%emt 00:00:11]} 
24.Rg6 {[%clk 01:08:54][%emt 00:00:24]} 24...Re8 {[%clk 00:36:18][%emt
00:07:11]} 25.Rxg7 {[%clk 01:01:53][%emt 00:07:30]} 25...Re2 {[%clk
00:36:40][%emt 00:00:08]} 26.Rhg1 {[%clk 00:49:50][%emt 00:12:33]} 26...Rc4+ 
{[%clk 00:28:15][%emt 00:08:56]} 27.Kb1 {[%clk 00:48:56][%emt 00:01:23]} 
27...a5 {[%clk 00:23:03][%emt 00:05:42]} 28.Rf7 {[%clk 00:48:22][%emt 00:01:04]} 
28...Kb8 {[%clk 00:22:40][%emt 00:00:53]} 29.Rc1 {[%clk 00:48:38][%emt
00:00:13]} 29...Rb4 {[%clk 00:20:17] [%emt 00:02:55]} 30.Rc2 {[%clk 00:48:51]
[%emt 00:00:16]} 30...Re1+ {[%clk 00:20:39] [%emt 00:00:08]} 31.Rc1 {[%clk
00:49:13][%emt 00:00:07]} 31...Re2 {[%clk 00:20:17][%emt 00:02:55]} 32.Rc2 
{[%clk 00:48:51][%emt 00:00:16]} 32...Re1+ {[%clk 00:20:39][%emt 00:00:08]} 1/2-1/2

[Event "FIDE Grand Swiss 2023"]
[Site "Villa Marina, Douglas, Isle of Man"]
[Date "2023.11.04"]
[Round "10.39"]
[White "Mishra, Abhimanyu"]
[Black "Ivanchuk, Vasyl"]
[Result "1-0"]
[WhiteElo "2592"]
[BlackElo "2653"]
[EventDate "2023.10.25"]
[ECO "B66"]
[PlyCount "61"]
[BlackClock "00:20:51"]
[BlackFideId "14100010"]
[TimeControl "40/100 + 20/50 + 15 + 30s/move"]
[WhiteClock "00:23:09"]
[WhiteFideId "30920019"]

1.e4 {[%clk 01:40:58]} 1...c5 {[%clk 01:40:55][%emt 00:00:05]} 2.Nf3 {[%clk
01:41:20][%emt 00:00:09]} 2...d6 {[%clk 01:41:22][%emt 00:00:04]} 3.d4 {[%clk
01:41:34][%emt 00:00:15]} 3...cxd4 {[%clk 01:41:48][%emt 00:00:04]} 4.Nxd4 
{[%clk 01:41:58][%emt 00:00:07]} 4...Nf6 {[%clk 01:42:15][%emt 00:00:03]} 5.Nc3 
{[%clk 01:42:16][%emt 00:00:12]} 5...Nc6 {[%clk 01:42:43][%emt 00:00:01]} 6.Bg5 
{[%clk 01:42:15][%emt 00:00:31]} 6...e6 {[%clk 01:43:10][%emt 00:00:03]} 7.Qd2 
{[%clk 01:41:58][%emt 00:00:48]} 7...a6 {[%clk 01:43:21][%emt 00:00:19]} 8.Nxc6 
{[%clk 01:39:46][%emt 00:02:41]} 8...bxc6 {[%clk 01:43:48][%emt 00:00:04]} 
9.O-O-O {[%clk 01:39:57][%emt 00:00:18]} 9...d5 {[%clk 01:43:54][%emt 00:00:24]} 
10.Qe3 {[%clk 01:36:32][%emt 00:03:55]} 10...Be7 {[%clk 01:40:41][%emt
00:03:42]} 11.Bxf6 {[%clk 01:36:25][%emt 00:00:38]} 11...gxf6 {[%clk
01:40:49][%emt 00:00:21]} 12.Bc4 {[%clk 01:35:32][%emt 00:01:24]} 12...Bb7 
{[%clk 01:36:53][%emt 00:04:26]} 13.Rhe1 {[%clk 01:34:41][%emt 00:01:21]} 
13...h5 {[%clk 01:28:05][%emt 00:09:18]} 14.exd5 {[%clk 01:05:22][%emt
00:29:49]} 14...cxd5 {[%clk 01:27:50][%emt 00:00:45]} 15.Bxd5 {[%clk
01:04:17][%emt 00:01:36]} 15...exd5 {[%clk 01:27:46][%emt 00:00:33]} 16.Nxd5 
{[%clk 01:03:19][%emt 00:01:28]} 16...Bxd5 {[%clk 01:28:04][%emt 00:00:12]} 
17.Rxd5 {[%clk 01:03:45] [%emt 00:00:04]} 17...Qc7 {[%clk 01:28:31] [%emt
00:00:03]} 18.Rc5 {[%clk 01:02:58] [%emt 00:01:18]} 18...Qd8 {[%clk 01:22:03]
[%emt 00:06:56]} 19.Rd5 {[%clk 01:03:45][%emt 00:00:04]} 19...Qc7 {[%clk
01:28:31][%emt 00:00:03]} 20.Rc5 {[%clk 01:02:58][%emt 00:01:18]} 20...Qd8 
{[%clk 01:22:03][%emt 00:06:56]} 21.Qf3 {[%clk 00:42:33][%emt 00:09:27]} 
21...Kf8 {[%clk 00:35:21][%emt 00:46:36]} 22.Rxh5 {[%clk 00:42:29][%emt
00:00:36]} 22...Rxh5 {[%clk 00:33:02][%emt 00:02:48]} 23.Qxh5 {[%clk
00:42:52][%emt 00:00:07]} 23...Kg7 {[%clk 00:33:24][%emt 00:00:05]} 24.Re3 
{[%clk 00:32:12][%emt 00:11:13]} 24...Bd6 {[%clk 00:25:30][%emt 00:08:24]} 
25.Qg4+ {[%clk 00:31:01][%emt 00:01:41]} 25...Kf8 {[%clk 00:25:49][%emt
00:00:09]} 26.Rh3 {[%clk 00:29:44][%emt 00:01:48]} 26...Ke7 {[%clk
00:25:03][%emt 00:01:16]} 27.Qe4+ {[%clk 00:29:01][%emt 00:01:14]} 27...Kd7 
{[%clk 00:20:08][%emt 00:05:24]} 28.Qb7+ {[%clk 00:24:01][%emt 00:05:31]} 
28...Ke8 {[%clk 00:20:18][%emt 00:00:20]} 29.Rh8+ {[%clk 00:23:01][%emt
00:01:31]} 29...Bf8 {[%clk 00:20:36][%emt 00:00:10]} 30.Rh7 {[%clk 00:22:49]
[%emt 00:00:42]} 30...Be7 {[%clk 00:20:57] [%emt 00:00:10]} 31.Qc6+ {[%clk
00:23:09] [%emt 00:00:10]} 1-0